bitfinex/quotes_ETHUSD_20250524
["timestamp","ask_amount","ask_price","bid_price","bid_amount"]
[1748130183646,0.7808,2526.6,2525.9,11.845]
[1748130183808,0.7808,2526.6,2526.0,0.7976]
[1748130185041,0.7808,2526.6,2526.0,8.7976]
[1748130186236,6.07,2526.5,2526.0,8.7976]
[1748130189242,6.07,2526.5,2526.1,15.574]
[1748130189563,0.8327,2527.0,2526.2,0.84787676]
[1748130189854,0.8327,2527.0,2526.2,0.8083]
[1748130190411,0.8327,2527.2,2526.2,0.8083]
[1748130190917,0.8327,2526.8,2525.6,0.67813026]
[1748130191120,0.8327,2526.8,2525.4,1.43606657]
[1748130191121,0.8327,2526.8,2526.3,11.846]
[1748130191531,0.8327,2526.8,2526.4,11.846]
[1748130191735,0.55,2526.7,2525.9,0.47206168]
[1748130191948,0.55,2526.2,2525.9,0.47206168]
[1748130192110,0.8327,2526.1,2525.9,0.47206168]
[1748130192444,0.8327,2526.1,2526.0,11.846]
[1748130193953,1.3827,2526.1,2526.0,11.846]
[1748130194515,0.7979,2526.0,2525.1,0.05]
[1748130194719,0.7979,2526.0,2525.3,8.0]
[1748130198648,0.7979,2526.0,2525.1,0.05]
[1748130198854,0.7979,2526.0,2525.4,11.849]
[1748130199023,6.07,2525.9,2525.4,11.849]
[1748130199230,0.7532,2525.8,2525.5,22.213]
[1748130200514,0.7532,2525.8,2525.5,8.0]
[1748130200718,6.07,2525.7,2525.1,0.05]
[1748130200958,0.7532,2525.6,2525.1,0.05]
[1748130201155,0.7532,2525.4,2525.2,11.849]
[1748130201860,0.7532,2525.4,2525.3,11.849]
[1748130202053,0.7532,2525.2,2525.1,0.05]
[1748130202357,0.7532,2525.2,2525.1,11.899]
[1748130202555,1.49052,2525.2,2525.1,11.899]
[1748130208169,0.7532,2525.2,2525.1,11.899]
[1748130208359,6.07,2525.2,2525.1,11.899]
[1748130209242,6.07,2525.2,2525.1,27.481]
[1748130210439,6.07,2525.2,2525.1,0.05]
[1748130210641,6.07,2525.2,2525.1,11.903]
[1748130210845,6.677,2525.2,2525.1,11.903]
[1748130211047,7.4429,2525.2,2525.1,0.05]
[1748130211261,7.4429,2525.2,2525.1,11.903]
[1748130212162,7.4429,2525.2,2525.1,0.05]
[1748130212369,7.4429,2525.2,2525.1,11.902]
[1748130213565,7.4429,2525.2,2525.1,0.05]
[1748130213771,7.4429,2525.2,2525.1,11.902]
[1748130214551,7.4429,2525.2,2525.1,0.05]
[1748130214735,7.4429,2525.2,2525.1,11.903]
[1748130218341,7.4429,2525.2,2525.1,11.904]
[1748130219179,7.4429,2525.2,2525.1,15.627]
[1748130219555,7.4429,2525.2,2525.1,11.904]
[1748130221281,7.9929,2525.2,2525.1,11.904]
[1748130221676,7.9929,2525.2,2525.1,0.05]
[1748130221846,7.9929,2525.2,2525.1,11.904]
[1748130222052,7.9929,2525.2,2525.1,0.05]
[1748130222602,0.7616,2524.8,2524.1,0.05]
[1748130222778,6.69816,2524.7,2524.2,11.854]
[1748130225794,6.68325,2524.7,2524.2,11.854]
[1748130227088,0.7616,2524.6,2524.3,11.855]
[1748130227390,6.00509,2524.5,2524.1,0.05]
[1748130227692,0.55,2524.2,2524.1,0.05]
[1748130227992,0.7546,2523.9,2523.1,0.874]
[1748130228170,0.7546,2523.9,2523.8,11.905]
[1748130228171,1.3046,2523.9,2523.8,11.905]
[1748130228687,11.5546,2523.9,2523.8,0.05]
[1748130228880,11.5546,2523.9,2523.8,11.905]
[1748130229258,11.5546,2523.9,2523.8,51.2]
[1748130229497,13.35255718,2523.9,2523.8,15.631]
[1748130229671,13.35255718,2523.9,2523.8,27.486]
[1748130230251,13.35255718,2523.9,2523.8,11.907]
[1748130230458,21.35255718,2523.9,2523.8,11.907]
[1748130231161,21.35255718,2523.9,2523.8,0.05]
[1748130231360,8.55,2523.8,2523.1,0.05]
[1748130231598,4.1659744,2523.3,2523.2,11.857]
[1748130231901,14.4159744,2523.3,2523.2,11.857]
[1748130232792,11.5546,2523.3,2523.2,11.857]
[1748130233586,7.32339,2523.2,2523.1,0.05]
[1748130233784,17.57339,2523.2,2523.1,11.909]
[1748130233958,19.61686644,2523.2,2523.1,11.909]
[1748130236264,17.02339,2523.2,2523.1,11.909]
[1748130237011,16.20509,2523.2,2523.1,11.909]
[1748130238379,16.20509,2523.2,2522.4,0.776]
[1748130239074,16.20509,2523.2,2522.5,6.643]
[1748130239274,16.20509,2523.2,2522.5,15.588]
[1748130239475,5.95509,2523.1,2522.6,11.862]
[1748130240377,5.95509,2523.1,2522.7,0.8227]
[1748130241018,5.95509,2523.1,2522.7,8.8227]
[1748130241373,5.95509,2523.1,2522.8,11.862]
[1748130242005,5.95509,2523.1,2522.7,0.8227]
[1748130242209,0.595509,2523.0,2522.8,11.863]
[1748130242613,0.595509,2523.0,2522.9,11.863]
[1748130242784,0.595509,2523.0,2522.4,0.8227]
[1748130242988,0.595509,2523.0,2522.6,8.0]
[1748130243629,0.595509,2523.0,2522.4,0.8227]
[1748130243923,1.2868699,2522.9,2522.5,11.863]
[1748130244219,0.55,2522.7,2522.6,11.863]
[1748130244717,0.55,2522.7,2522.1,0.05]
[1748130245021,0.55,2522.7,2522.2,11.864]
[1748130245312,0.55,2522.7,2522.3,11.864]
[1748130245672,0.8181,2522.8,2522.3,11.864]
[1748130245913,0.677319,2522.7,2522.3,11.864]
[1748130246917,0.677319,2522.7,2522.3,12.6867]
[1748130247116,5.95509,2522.9,2522.3,12.6867]
[1748130247281,5.95509,2522.9,2522.4,8.0]
[1748130248235,5.95509,2522.8,2522.4,8.0]
[1748130249088,5.95509,2522.8,2522.5,11.865]
[1748130249426,0.595509,2522.7,2522.5,51.178]
[1748130250384,5.95509,2522.8,2522.5,51.178]
[1748130250734,5.95509,2522.8,2522.5,11.865]
[1748130252246,5.95509,2522.8,2522.3,0.8227]
[1748130252430,5.95509,2522.8,2522.4,11.865]
[1748130252737,1.3373,2522.7,2522.1,0.05]
[1748130252941,0.729239,2522.6,2522.5,11.865]
[1748130253129,6.684329,2522.6,2522.5,11.865]
[1748130253838,0.55,2522.5,2522.1,0.05]
[1748130254039,0.7873,2522.4,2522.2,11.865]
[1748130254356,1.3373,2522.2,2522.1,0.05]
[1748130254653,2.066539,2522.2,2522.1,11.915]
[1748130255599,1.516539,2522.2,2522.1,11.915]
[1748130255821,0.7873,2522.2,2522.1,11.915]
[1748130256343,1.3373,2522.2,2522.1,11.915]
[1748130256548,1.3373,2522.2,2522.1,0.05]
[1748130256723,1.3373,2522.2,2522.1,11.916]
[1748130257449,5.95509,2522.2,2522.1,11.916]
[1748130257612,5.95509,2522.2,2522.1,20.7471]
[1748130258038,5.95509,2522.2,2522.1,11.916]
[1748130258545,5.95509,2522.2,2522.1,0.05]
[1748130258730,6.50509,2522.2,2522.1,11.916]
[1748130259122,6.50509,2522.2,2522.1,51.235]
[1748130259308,7.238129,2522.2,2522.1,51.235]
[1748130259953,7.238129,2522.2,2522.1,27.504]
[1748130260755,7.238129,2522.2,2522.1,11.917]
[1748130260929,7.238129,2522.2,2522.1,0.05]
[1748130261130,7.238129,2522.2,2522.1,11.917]
[1748130261325,7.70862415,2522.2,2522.1,0.05]
[1748130261657,7.70862415,2522.2,2522.1,11.917]
[1748130262269,7.15862415,2522.2,2522.1,11.917]
[1748130262769,6.688129,2522.2,2522.1,11.917]
[1748130264474,5.95509,2522.2,2522.1,11.917]
[1748130266293,5.95509,2522.2,2522.1,0.05]
[1748130266430,5.95509,2522.2,2522.1,11.918]
[1748130269157,5.95509,2522.2,2522.1,51.243]
[1748130270680,5.95509,2522.2,2522.1,11.918]
[1748130271073,5.95509,2522.2,2522.1,0.05]
[1748130271257,6.550599,2522.2,2522.1,11.918]
[1748130271973,5.95509,2522.2,2522.1,0.05]
[1748130272271,5.95509,2522.2,2522.1,11.918]
[1748130272433,5.95509,2522.2,2522.1,0.05]
[1748130272635,5.95509,2522.2,2522.1,11.918]
[1748130272829,6.73199,2522.2,2522.1,11.918]
[1748130273358,7.405189,2522.2,2522.1,11.918]
[1748130273563,7.405189,2522.2,2522.1,0.05]
[1748130273766,7.405189,2522.2,2522.1,11.918]
[1748130275933,7.405189,2522.2,2522.1,0.05]
[1748130276484,7.405189,2522.2,2522.1,11.918]
[1748130276682,7.955189,2522.2,2522.1,0.05]
[1748130276886,7.955189,2522.2,2522.1,11.918]
[1748130277769,7.955189,2522.2,2522.1,11.919]
[1748130278600,7.955189,2522.2,2522.1,0.05]
[1748130278809,6.45509,2522.1,2521.3,0.8181]
[1748130278948,0.7905189,2522.0,2521.4,11.869]
[1748130279299,0.7604,2521.8,2521.5,39.419]
[1748130279485,0.55,2521.7,2521.6,27.551]
[1748130279853,0.55,2521.7,2521.6,11.869]
[1748130281480,1.02049515,2521.7,2521.6,11.869]
[1748130281696,1.85182635,2521.7,2521.6,11.869]
[1748130282570,7.2864212,2521.7,2521.6,11.869]
[1748130283999,7.75691635,2521.7,2521.1,0.05]
[1748130284294,7.75691635,2521.7,2521.2,11.87]
[1748130285004,0.55,2521.5,2521.3,11.87]
[1748130285201,0.55,2521.5,2521.1,0.05]
[1748130285386,0.55,2521.5,2521.4,11.87]
[1748130285704,1.68697908,2521.5,2521.4,11.87]
[1748130285993,2.15747423,2521.5,2521.4,11.87]
[1748130286707,2.90897423,2521.5,2521.4,11.87]
[1748130289286,2.90897423,2521.5,2521.4,51.3]
[1748130290806,2.43847908,2521.5,2521.4,51.3]
[1748130292509,2.43847908,2521.5,2521.4,27.556]
[1748130293416,2.43847908,2521.5,2521.4,11.872]
[1748130294033,2.43847908,2521.5,2521.1,0.05]
[1748130294348,0.55,2521.3,2521.2,11.872]
[1748130294756,0.55,2521.3,2521.1,0.05]
[1748130294956,1.3584,2521.2,2521.1,0.05]
[1748130295158,1.3584,2521.2,2521.1,11.922]
[1748130296236,0.76139257,2521.4,2521.1,11.922]
[1748130296441,0.47049515,2521.4,2521.1,11.922]
[1748130297727,0.55,2521.4,2521.2,11.873]
[1748130298467,5.90509,2521.3,2521.2,11.873]
[1748130299271,5.90509,2521.3,2521.2,52.0927]
[1748130299584,5.90509,2521.3,2521.2,51.308]
[1748130299727,7.520599,2521.3,2521.2,11.873]
[1748130299932,8.070599,2521.3,2521.2,11.873]
[1748130300133,8.070599,2521.3,2521.1,0.05]
[1748130300366,0.8127,2521.2,2521.1,0.05]
[1748130300670,1.3627,2521.2,2521.1,11.923]
[1748130300871,2.2510299,2521.2,2521.1,0.05]
[1748130301046,2.2510299,2521.2,2521.1,11.923]
[1748130302260,2.72152505,2521.2,2521.1,11.923]
[1748130303542,1.90882505,2521.2,2521.1,0.05]
[1748130303743,1.90882505,2521.2,2521.1,11.923]
[1748130303941,0.47049515,2521.2,2521.1,11.923]
[1748130304256,6.37558515,2521.3,2521.1,11.923]
[1748130305352,5.90509,2521.3,2521.1,11.923]
[1748130305554,6.45509,2521.3,2521.2,11.874]
[1748130305894,1.3724,2521.2,2521.1,0.05]
[1748130306180,5.85509,2520.8,2520.6,0.7735]
[1748130306375,5.85509,2520.8,2520.1,0.05]
[1748130306376,5.85509,2520.8,2520.2,0.7735]
[1748130307486,5.85509,2520.8,2520.3,11.874]
[1748130307977,0.47313832,2521.0,2520.3,11.874]
[1748130308289,0.55,2520.9,2520.3,11.874]
[1748130309137,0.55,2520.9,2520.4,39.437]
[1748130309847,0.55,2520.9,2520.4,15.689]
[1748130310046,0.55,2520.9,2520.6,0.8189]
[1748130311049,0.55,2520.9,2520.3,0.8189]
[1748130311380,0.55,2520.9,2520.4,11.875]
[1748130311695,0.47313832,2521.0,2520.5,0.8189]
[1748130312697,0.47313832,2521.0,2520.8,0.8189]
[1748130312913,0.47313832,2521.4,2520.8,0.8189]
[1748130313677,0.47313832,2521.4,2520.9,11.874]
[1748130313978,1.3723,2521.3,2521.0,11.874]
[1748130314180,0.55,2521.3,2521.0,11.874]
[1748130315721,1.02313832,2521.3,2521.0,11.874]
[1748130315929,1.27041484,2521.3,2521.0,11.874]
[1748130316917,0.47313832,2521.3,2521.0,11.874]
[1748130317220,0.47313832,2521.3,2521.1,0.8189]
[1748130317577,0.47313832,2521.5,2521.1,0.8189]
[1748130319114,0.47313832,2521.5,2521.2,6.649]
[1748130319317,0.47313832,2521.5,2521.2,15.767]
[1748130321332,0.47313832,2521.5,2521.1,0.8189]
[1748130321538,0.47313832,2521.5,2521.2,11.874]
[1748130322233,0.72041484,2521.5,2521.2,11.874]
[1748130324845,5.85509,2521.4,2521.2,11.874]
[1748130326949,5.85509,2521.4,2521.1,0.8189]
[1748130327154,5.85509,2521.4,2521.2,11.874]
[1748130327155,0.55,2521.3,2521.2,11.874]
[1748130327307,0.55,2521.3,2520.2,2.2116848]
[1748130327510,16.745599,2521.2,2520.4,0.7517]
[1748130327704,16.745599,2521.2,2520.4,2.1329848]
[1748130327909,17.21873732,2521.2,2520.4,2.1329848]
[1748130328544,17.21873732,2521.2,2520.7,0.7517]
[1748130329140,17.21873732,2521.2,2520.8,39.513]
[1748130329342,7.57696373,2521.1,2520.8,39.513]
[1748130329554,5.85509,2521.1,2520.8,39.513]
[1748130329742,5.85509,2521.1,2520.8,40.8942848]
[1748130330669,5.85509,2521.1,2520.8,1.3812848]
[1748130330835,5.85509,2521.0,2520.9,0.7517]
[1748130331455,5.85275072,2521.0,2520.9,0.7517]
[1748130333658,5.85275072,2521.0,2520.9,0.96499848]
[1748130334161,0.47313832,2521.5,2521.0,0.7517]
[1748130334162,5.85275072,2521.4,2521.0,0.7517]
[1748130334366,5.85275072,2521.4,2521.2,1.3812848]
[1748130334535,5.85275072,2521.4,2521.3,11.873]
[1748130335564,5.85275072,2521.4,2521.3,12.6247]
[1748130337980,5.85275072,2521.4,2521.3,20.6247]
[1748130339371,5.85275072,2521.4,2521.3,60.1347]
[1748130339936,5.85275072,2521.4,2521.3,24.5167]
[1748130340135,5.85275072,2521.4,2521.3,36.3897]
[1748130341277,5.85275072,2521.9,2521.3,20.6247]
[1748130341484,5.85275072,2521.9,2521.5,1.3812848]
[1748130344859,5.85275072,2521.9,2521.6,11.871]
[1748130345184,6.56407962,2521.9,2521.3,10.1329848]
[1748130345355,6.56407962,2521.9,2521.4,11.871]
[1748130345562,6.56407962,2521.9,2521.5,11.871]
[1748130347669,7.03721794,2521.9,2521.5,11.871]
[1748130347852,0.70372179,2521.8,2521.5,11.871]
[1748130348673,0.807,2521.7,2521.5,11.871]
[1748130349186,0.807,2521.7,2521.6,51.222]
[1748130349355,0.70372179,2521.8,2521.6,27.479]
[1748130349788,7.13288904,2521.9,2521.7,11.871]
[1748130350305,7.68288904,2521.9,2521.8,11.871]
[1748130350476,0.55,2521.8,2521.1,0.7768]
[1748130350675,0.807,2521.7,2521.2,11.871]
[1748130350915,0.55,2521.6,2520.8,0.7623]
[1748130351118,0.55,2521.4,2520.9,11.871]
[1748130351416,0.807,2521.3,2520.9,11.871]
[1748130351592,0.807,2521.3,2520.6,0.7623]
[1748130351796,0.55,2521.2,2520.7,11.871]
[1748130352374,1.02313832,2521.2,2520.7,11.871]
[1748130352576,0.7594,2521.1,2520.8,11.872]
[1748130355428,0.9746153,2521.1,2520.5,1.3812848]
[1748130355637,0.9746153,2521.1,2520.9,11.872]
[1748130357213,5.85275072,2521.0,2520.9,11.872]
[1748130359093,5.85275072,2521.0,2520.9,18.521]
[1748130359450,7.66280115,2521.0,2520.9,15.611]
[1748130359723,6.40275072,2520.9,2520.1,0.8732]
[1748130360018,6.40275072,2520.9,2520.2,11.873]
[1748130360583,6.40275072,2520.9,2520.2,13.2542848]
[1748130360785,6.40275072,2520.9,2520.4,1.3812848]
[1748130361125,7.32523237,2520.9,2520.4,1.3812848]
[1748130361807,6.77523237,2520.9,2520.3,8.0]
[1748130362123,6.77523237,2520.9,2520.5,0.8232]
[1748130362332,5.85275072,2520.9,2520.6,1.3812848]
[1748130362628,5.85275072,2520.9,2520.8,1.3812848]
[1748130363288,5.85275072,2520.9,2520.6,1.3812848]
[1748130363727,5.85275072,2520.9,2520.5,0.8232]
[1748130363890,5.85275072,2520.9,2520.8,2.2044848]
[1748130364286,5.85275072,2521.2,2520.8,2.2044848]
[1748130364600,5.85275072,2521.2,2520.9,11.874]
[1748130364823,5.85275072,2521.2,2520.6,0.8232]
[1748130365024,0.7968,2521.1,2520.7,11.874]
[1748130365225,1.21495507,2521.0,2520.7,11.874]
[1748130365815,1.21495507,2521.0,2520.4,1.3812848]
[1748130366015,1.21495507,2521.0,2520.5,11.874]
[1748130366235,1.21495507,2521.0,2520.4,1.3812848]
[1748130366547,0.7968,2520.7,2520.5,11.874]
[1748130366705,5.85275072,2520.6,2520.5,11.874]
[1748130367617,5.85275072,2520.6,2520.1,1.4312848]
[1748130367817,5.85275072,2520.6,2520.5,11.874]
[1748130369342,6.57270579,2520.6,2520.5,51.234]
[1748130370220,5.85275072,2520.6,2520.5,51.234]
[1748130370745,5.85275072,2520.6,2520.5,15.612]
[1748130370945,5.85275072,2520.6,2520.5,27.487]
[1748130371815,5.85275072,2520.6,2520.1,9.4312848]
[1748130372020,5.85275072,2520.6,2520.2,11.875]
[1748130373567,5.85275072,2520.6,2520.1,1.4312848]
[1748130373759,6.57270579,2520.6,2520.3,11.875]
[1748130375266,5.85275072,2520.6,2520.5,2.1355848]
[1748130376376,5.85275072,2520.6,2520.5,22.0105848]
[1748130378767,5.85275072,2520.6,2520.5,8.7543]
[1748130378946,5.85275072,2520.6,2520.5,8.0]
[1748130379146,6.51409579,2520.6,2520.5,59.228]
[1748130379665,6.51409579,2520.6,2520.5,43.626]
[1748130379875,5.85275072,2520.6,2520.5,8.0]
[1748130380282,5.85275072,2520.6,2520.5,19.875]
[1748130380989,5.85275072,2520.6,2520.5,8.0]
[1748130381288,5.85275072,2520.6,2520.5,19.875]
[1748130383384,5.85275072,2520.6,2520.5,20.7051]
[1748130384093,5.85275072,2520.6,2520.5,19.875]
[1748130387901,6.52085579,2520.6,2520.1,0.8801]
[1748130388369,6.52085579,2520.6,2520.2,11.875]
[1748130388552,6.52085579,2520.6,2520.1,0.05]
[1748130388553,0.8283,2520.4,2520.3,11.875]
[1748130388750,1.61821558,2520.4,2520.3,11.875]
[1748130389385,1.61821558,2520.4,2520.3,51.226]
[1748130389877,1.61821558,2520.4,2520.3,27.476]
[1748130390597,1.61821558,2520.4,2520.1,0.05]
[1748130390801,1.61821558,2520.4,2520.2,11.875]
[1748130390982,0.80209663,2520.3,2520.2,11.875]
[1748130391300,6.65484735,2520.3,2520.1,0.05]
[1748130391501,7.20484735,2520.3,2520.2,11.875]
[1748130392495,7.67798567,2520.3,2520.2,11.875]
[1748130394312,0.55,2520.2,2520.1,0.05]
[1748130394521,1.40062857,2520.2,2520.1,11.925]
[1748130394869,1.40062857,2520.2,2520.1,0.05]
[1748130395070,1.40062857,2520.2,2520.1,11.926]
[1748130395288,3.61021337,2520.2,2520.1,0.05]
[1748130395487,0.55,2519.9,2519.2,0.8301]
[1748130395685,0.63527507,2519.8,2519.3,11.876]
[1748130395881,0.55,2520.0,2519.2,0.8301]
[1748130396068,0.55,2520.0,2519.3,11.876]
[1748130396069,0.8283,2519.5,2519.3,11.876]
[1748130396404,6.35275072,2519.4,2519.3,11.876]
[1748130396610,0.55,2519.3,2519.1,0.05]
[1748130396916,0.55,2519.3,2519.2,11.876]
[1748130397199,2.29310507,2519.3,2519.2,11.876]
[1748130397766,1.3335,2519.2,2519.1,0.05]
[1748130397968,1.3335,2519.2,2519.1,11.928]
[1748130398204,1.3335,2519.2,2519.1,0.05]
[1748130398421,1.3335,2519.2,2519.1,11.928]
[1748130398579,3.24643558,2519.2,2519.1,11.928]
[1748130398994,3.24643558,2519.2,2519.1,0.05]
[1748130399230,1.3335,2519.1,2518.1,0.05]
[1748130399432,0.7835,2518.4,2518.2,46.451]
[1748130399596,2.7147848,2518.3,2518.2,46.451]
[1748130399928,10.98626328,2518.3,2518.2,29.347]
[1748130400112,10.98626328,2518.3,2518.2,11.878]
[1748130400428,8.55,2518.2,2518.1,0.05]
[1748130400601,0.55,2518.2,2518.1,11.928]
[1748130402035,0.7835,2518.3,2518.1,11.928]
[1748130402331,0.55,2518.2,2518.1,11.928]
[1748130402839,0.55,2518.2,2518.1,0.05]
[1748130403000,0.97140219,2518.2,2518.1,11.929]
[1748130403606,0.55,2518.2,2518.1,11.929]
[1748130404027,0.7835,2518.3,2518.1,11.929]
[1748130404226,0.47037899,2518.8,2518.1,11.929]
[1748130404227,0.55,2518.5,2518.1,11.929]
[1748130404426,0.55,2518.5,2518.2,11.882]
[1748130405646,0.8209,2518.6,2518.2,11.882]
[1748130407252,0.8209,2518.9,2518.2,11.882]
[1748130407453,0.55,2518.8,2518.2,11.882]
[1748130407629,0.55,2518.8,2518.1,0.05]
[1748130407837,0.55,2518.8,2518.2,11.884]
[1748130408367,0.55,2518.6,2518.3,11.884]
[1748130409259,0.55,2518.6,2518.4,42.853]
[1748130409461,0.55,2518.8,2518.4,42.853]
[1748130409650,1.22505008,2518.9,2518.4,19.083]
[1748130409848,0.55,2518.8,2518.4,19.083]
[1748130410158,1.26877899,2519.4,2518.4,2.39006741]
[1748130410360,1.67356316,2519.4,2518.4,3.70852192]
[1748130410557,1.67356316,2519.4,2518.4,0.828]
[1748130410775,1.67356316,2519.4,2518.5,11.885]
[1748130411059,1.20318417,2519.4,2518.5,11.885]
[1748130411664,0.55,2518.9,2518.6,11.885]
[1748130412159,0.55,2518.9,2518.7,11.885]
[1748130412467,0.55,2518.9,2518.8,11.885]
[1748130413866,0.55,2519.3,2518.8,11.885]
[1748130414051,0.89547842,2519.2,2518.8,11.885]
[1748130414363,0.8006,2519.3,2518.8,11.885]
[1748130416442,0.8006,2519.3,2518.9,11.885]
[1748130416653,5.80275072,2518.9,2518.4,0.7924]
[1748130416850,5.80275072,2518.9,2518.5,11.885]
[1748130417047,6.38302579,2518.9,2518.5,11.885]
[1748130417427,6.38302579,2518.9,2518.6,11.885]
[1748130417966,6.38302579,2518.9,2518.7,11.885]
[1748130418821,6.38302579,2518.9,2518.4,0.7924]
[1748130419183,6.38302579,2518.9,2518.5,54.738]
[1748130419469,0.63830258,2518.8,2518.5,30.968]
[1748130419825,0.55,2519.2,2518.5,30.968]
[1748130420026,0.55,2519.2,2518.5,11.885]
[1748130421524,0.8006,2519.3,2518.5,11.885]
[1748130421772,0.87516316,2519.4,2518.6,0.7924]
[1748130422064,0.55,2519.3,2518.6,0.7924]
[1748130422231,0.87516316,2519.4,2518.6,0.7924]
[1748130422435,0.63507769,2519.4,2518.6,0.7924]
[1748130422968,0.47037899,2519.6,2518.6,0.7924]
[1748130423170,0.87398721,2519.6,2518.7,2.88052192]
[1748130423372,0.47037899,2519.6,2518.9,2.88052192]
[1748130423669,0.47037899,2519.6,2519.0,0.8104]
[1748130424444,0.47037899,2519.6,2519.3,0.8104]
[1748130424643,0.47037899,2520.2,2519.3,0.8104]
[1748130424936,0.86441907,2520.2,2519.3,0.8104]
[1748130425149,0.86441907,2520.2,2519.3,0.85008961]
[1748130425376,0.86441907,2520.2,2519.3,0.8104]
[1748130425768,0.86441907,2520.2,2519.3,8.8104]
[1748130426773,0.47037899,2520.2,2519.4,0.8104]
[1748130426971,0.47037899,2520.2,2519.9,8.0]
[1748130427187,0.47037899,2520.2,2520.1,0.8104]
[1748130427416,0.47037899,2520.6,2520.1,0.8104]
[1748130427846,0.47037899,2520.6,2520.2,11.883]
[1748130428262,0.52037899,2520.9,2520.3,0.8064]
[1748130428484,0.52037899,2520.9,2520.3,8.8064]
[1748130429202,0.52037899,2520.9,2520.4,42.845]
[1748130429368,0.05,2520.9,2520.4,42.845]
[1748130430185,0.05,2520.9,2520.5,30.383]
[1748130430568,0.05,2520.9,2520.3,0.8064]
[1748130430763,0.05,2520.9,2520.4,11.881]
[1748130431704,0.05,2520.9,2520.4,14.76152192]
[1748130432063,0.05,2520.9,2520.5,0.8064]
[1748130432662,0.05,2520.9,2520.5,8.8064]
[1748130432904,0.05,2520.9,2520.6,11.881]
[1748130433092,0.05,2520.9,2520.7,11.881]
[1748130436102,0.05,2520.9,2520.8,11.70642192]
[1748130438831,0.05,2520.9,2520.8,8.8259]
[1748130439189,0.05,2520.9,2520.8,51.0689]
[1748130440039,0.05,2520.9,2520.8,20.7019]
[1748130443211,0.05,2520.9,2520.8,8.8259]
[1748130443413,0.05,2520.9,2520.8,21.58249]
[1748130448156,0.05,2520.9,2520.8,9.70849]
[1748130448446,0.05,2520.9,2520.8,20.6989]
[1748130448604,0.05,2520.9,2520.8,8.8259]
[1748130448805,0.05,2520.9,2520.8,11.873]
[1748130449220,0.05,2520.9,2520.8,54.105]
[1748130450741,0.05,2520.9,2520.8,11.873]
[1748130451404,5.85275072,2520.9,2520.8,11.873]
[1748130452019,5.85275072,2520.9,2520.5,0.7802]
[1748130452238,5.85275072,2520.9,2520.6,11.873]
[1748130452748,0.05,2520.9,2520.7,0.7898]
[1748130452933,0.05,2520.9,2520.8,0.7898]
[1748130453513,0.05,2520.9,2520.8,0.82945418]
[1748130453714,0.05,2520.9,2520.8,1.3398]
[1748130453935,0.05,2520.9,2520.8,1.33616185]
[1748130454207,0.05,2521.9,2520.9,8.55]
[1748130455553,0.05,2521.9,2520.9,1.04016017]
[1748130455705,0.05,2521.9,2520.9,0.49016017]
[1748130457044,0.05,2521.9,2521.3,0.55]
[1748130457246,0.05,2521.9,2521.2,0.8126]
[1748130457247,0.05,2521.9,2521.6,0.8126]
[1748130458253,0.05,2521.9,2521.8,1.3656]
[1748130459129,0.05,2521.9,2521.8,43.0036]
[1748130459515,0.05,2521.9,2521.8,18.7136]
[1748130459726,0.05,2521.9,2521.8,30.5836]
[1748130459919,0.05,2521.9,2521.8,12.6856]
[1748130460510,0.05,2521.9,2521.8,0.8156]
[1748130460711,0.05,2521.9,2521.8,12.6846]
[1748130460965,0.05,2521.9,2521.8,20.6846]
[1748130465867,0.05,2522.9,2521.9,0.8172]
[1748130466516,0.05,2522.9,2522.1,0.8172]
[1748130469144,0.05,2522.9,2522.0,0.55]
[1748130469145,0.05,2522.9,2522.3,8.0]
[1748130469389,0.05,2522.9,2522.3,8.8208]
[1748130471303,0.05,2522.9,2522.3,0.8208]
[1748130472269,0.05,2522.9,2522.4,11.866]
[1748130473483,0.8105,2522.8,2522.3,0.8208]
[1748130473804,0.8105,2522.8,2522.4,11.865]
[1748130475413,0.8105,2522.8,2522.5,8.0]
[1748130477508,0.05,2522.9,2522.5,8.8227]
[1748130478389,0.05,2522.9,2522.7,8.0]
[1748130479185,0.05,2522.9,2522.8,17.324]
[1748130479422,0.05,2522.9,2522.8,25.324]
[1748130481186,0.8015,2522.9,2522.8,8.0]
[1748130481383,0.8015,2522.9,2522.8,19.865]
[1748130483739,0.05,2522.9,2522.8,19.865]
[1748130483886,0.05,2522.9,2522.8,19.864]
[1748130487437,0.05,2522.9,2522.8,20.6867]
[1748130487786,0.05,2522.9,2522.8,19.864]
[1748130489154,0.05,2522.9,2522.8,43.591]
[1748130489288,0.05,2522.9,2522.8,25.323]
[1748130489636,0.05,2522.9,2522.8,11.864]
[1748130490524,0.05,2522.9,2522.8,19.864]
[1748130491419,0.05,2522.9,2522.8,19.863]
[1748130492408,0.05,2522.9,2522.3,0.8227]
[1748130492612,0.8286,2522.8,2522.4,11.863]